[Event "FIDE Grand Swiss 2023"]
[Site "Villa Marina, Douglas, Isle of Man"]
[Date "2023.10.30"]
[Round "6.15"]
[White "Bartel, Mateusz"]
[Black "Maghsoodloo, Parham"]
[Result "1/2-1/2"]
[WhiteElo "2651"]
[BlackElo "2707"]
[EventDate "2023.10.25"]
[ECO "B12"]
[PlyCount "60"]
[BlackFideId "12539929"]
[TimeControl "40/100 + 20/50 + 15 + 30s/move"]
[WhiteFideId "1112635"]

1.e4 {[%clk 01:40:57] [%emt 00:00:02]} 1...c6 {[%clk 01:40:54] [%emt 00:00:08]} 
2.d4 {[%clk 01:40:47] [%emt 00:00:38]} 2...d5 {[%clk 01:41:20] [%emt 00:00:05]} 
3.e5 {[%clk 01:41:00] [%emt 00:00:17]} 3...Bf5 {[%clk 01:41:45] [%emt 00:00:06]} 
4.Nf3 {[%clk 01:41:22] [%emt 00:00:07]} 4...e6 {[%clk 01:42:11] [%emt 00:00:04]} 
5.c3 {[%clk 01:41:31] [%emt 00:00:22]} 5...Nd7 {[%clk 01:38:25] [%emt 00:04:16]} 
6.Be2 {[%clk 01:41:19] [%emt 00:00:42]} 6...a5 {[%clk 01:35:04] [%emt 00:03:50]} 
7.Nbd2 {[%clk 01:37:57] [%emt 00:03:52]} 7...a4 {[%clk 01:28:15] [%emt
00:07:19]} 8.Nf1 {[%clk 01:37:47] [%emt 00:00:39]} 8...h6 {[%clk 01:24:05] [%emt
00:04:41]} 9.Ne3 {[%clk 01:29:31] [%emt 00:08:46]} 9...Bh7 {[%clk 01:22:49]
[%emt 00:01:47]} 10.O-O {[%clk 01:27:13] [%emt 00:02:47]} 10...Ne7 {[%clk
01:22:59] [%emt 00:00:20]} 11.Bd2 {[%clk 01:19:51] [%emt 00:07:52]} 11...Nf5 
{[%clk 01:09:56] [%emt 00:13:34]} 12.b3 {[%clk 01:15:45] [%emt 00:04:36]} 
12...Be7 {[%clk 01:07:26] [%emt 00:03:00]} 13.c4 {[%clk 01:15:14] [%emt
00:01:00]} 13...O-O {[%clk 00:58:37] [%emt 00:09:19]} 14.Bd3 {[%clk 00:52:21]
[%emt 00:23:22]} 14...Nxe3 {[%clk 00:57:46] [%emt 00:01:23]} 15.Bxh7+ {[%clk
00:52:43] [%emt 00:00:06]} 15...Kxh7 {[%clk 00:58:13] [%emt 00:00:04]} 16.Bxe3 
{[%clk 00:53:04] [%emt 00:00:09]} 16...Qa5 {[%clk 00:56:08] [%emt 00:02:35]} 
17.Rc1 {[%clk 00:38:59] [%emt 00:14:35]} 17...axb3 {[%clk 00:53:50] [%emt
00:02:48]} 18.axb3 {[%clk 00:39:19] [%emt 00:00:10]} 18...Kg8 {[%clk 00:53:04]
[%emt 00:01:16]} 19.Ne1 {[%clk 00:37:09] [%emt 00:02:40]} 19...dxc4 {[%clk
00:47:38] [%emt 00:05:57]} 20.bxc4 {[%clk 00:36:36] [%emt 00:01:02]} 20...c5 
{[%clk 00:48:03] [%emt 00:00:05]} 21.Qg4 {[%clk 00:28:24] [%emt 00:08:42]} 
21...cxd4 {[%clk 00:46:56] [%emt 00:01:38]} 22.Bxh6 {[%clk 00:28:35] [%emt
00:00:19]} 22...Qxe5 {[%clk 00:47:20] [%emt 00:00:06]} 23.Nf3 {[%clk 00:28:19]
[%emt 00:00:45]} 23...Qf6 {[%clk 00:43:36] [%emt 00:04:15]} 24.Bg5 {[%clk
00:26:36] [%emt 00:02:12]} 24...Qg6 {[%clk 00:44:01] [%emt 00:00:06]} 25.Qxd4 
{[%clk 00:25:30] [%emt 00:01:35]} 25...Bxg5 {[%clk 00:44:27] [%emt 00:00:04]} 
26.Nxg5 {[%clk 00:25:53] [%emt 00:00:07]} 26...Qxg5 {[%clk 00:43:55] [%emt
00:01:04]} 27.Qxd7 {[%clk 00:26:15] [%emt 00:00:07]} 27...b6 {[%clk 00:44:17]
[%emt 00:00:07]} 28.Rb1 {[%clk 00:25:38] [%emt 00:01:07]} 28...Rac8 {[%clk
00:44:24] [%emt 00:00:24]} 29.Rxb6 {[%clk 00:25:17] [%emt 00:00:51]} 29...Qc5 
{[%clk 00:44:45] [%emt 00:00:08]} 30.Qb5 {[%clk 00:25:38] [%emt 00:00:09]} 
30...Qxc4 {[%clk 00:45:12] [%emt 00:00:04]} 1/2-1/2

[Event "FIDE Grand Swiss 2023"]
[Site "Villa Marina, Douglas, Isle of Man"]
[Date "2023.10.30"]
[Round "6.16"]
[White "Jumabayev, Rinat"]
[Black "Deac, Bogdan-Daniel"]
[Result "0-1"]
[WhiteElo "2585"]
[BlackElo "2701"]
[EventDate "2023.10.25"]
[ECO "B51"]
[PlyCount "120"]
[BlackFideId "1226380"]
[TimeControl "40/100 + 20/50 + 15 + 30s/move"]
[WhiteFideId "13702661"]

1.e4 {[%clk 01:40:58] [%emt 00:00:01]} 1...c5 {[%clk 01:40:18] [%emt 00:00:42]} 
2.Nf3 {[%clk 01:40:50] [%emt 00:00:39]} 2...d6 {[%clk 01:40:45] [%emt 00:00:02]} 
3.Bb5+ {[%clk 01:40:59] [%emt 00:00:20]} 3...Nd7 {[%clk 01:40:50] [%emt
00:00:26]} 4.d4 {[%clk 01:39:00] [%emt 00:02:30]} 4...cxd4 {[%clk 01:41:11]
[%emt 00:00:08]} 5.Qxd4 {[%clk 01:39:26] [%emt 00:00:04]} 5...a6 {[%clk
01:40:53] [%emt 00:00:47]} 6.Be2 {[%clk 01:39:48] [%emt 00:00:09]} 6...Ngf6 
{[%clk 01:41:13] [%emt 00:00:10]} 7.O-O {[%clk 01:37:40] [%emt 00:02:38]} 
7...e5 {[%clk 01:32:10] [%emt 00:09:34]} 8.Qe3 {[%clk 01:37:14] [%emt 00:00:56]} 
8...Nc5 {[%clk 01:32:31] [%emt 00:00:09]} 9.Nc3 {[%clk 01:36:26] [%emt
00:01:18]} 9...Ng4 {[%clk 01:26:07] [%emt 00:06:54]} 10.Qd2 {[%clk 01:36:35]
[%emt 00:00:20]} 10...Nf6 {[%clk 01:26:34] [%emt 00:00:03]} 11.Qe3 {[%clk
01:33:15] [%emt 00:03:50]} 11...Be7 {[%clk 01:10:47] [%emt 00:16:17]} 12.Rd1 
{[%clk 01:29:48] [%emt 00:03:57]} 12...Ng4 {[%clk 01:07:59] [%emt 00:03:18]} 
13.Qd2 {[%clk 01:29:28] [%emt 00:00:49]} 13...Nf6 {[%clk 01:08:28] [%emt
00:00:02]} 14.Qe3 {[%clk 01:29:27] [%emt 00:00:31]} 14...Ng4 {[%clk 01:03:16]
[%emt 00:05:42]} 15.Qd2 {[%clk 01:27:45] [%emt 00:02:11]} 15...Nf6 {[%clk
01:03:43] [%emt 00:00:04]} 16.Qe1 {[%clk 00:58:36] [%emt 00:29:39]} 16...Bd7 
{[%clk 01:00:33] [%emt 00:03:40]} 17.Nd2 {[%clk 00:57:40] [%emt 00:01:26]} 
17...Qc7 {[%clk 00:47:43] [%emt 00:13:21]} 18.a4 {[%clk 00:51:38] [%emt
00:06:31]} 18...O-O {[%clk 00:40:03] [%emt 00:08:10]} 19.a5 {[%clk 00:47:28]
[%emt 00:04:41]} 19...Rad8 {[%clk 00:40:32] [%emt 00:00:01]} 20.Bf3 {[%clk
00:44:12] [%emt 00:03:45]} 20...Ne6 {[%clk 00:35:15] [%emt 00:05:47]} 21.Nb3 
{[%clk 00:43:38] [%emt 00:01:04]} 21...h6 {[%clk 00:34:57] [%emt 00:00:48]} 
22.Be3 {[%clk 00:39:22] [%emt 00:04:46]} 22...Rc8 {[%clk 00:34:58] [%emt
00:00:30]} 23.h4 {[%clk 00:34:30] [%emt 00:05:22]} 23...Qb8 {[%clk 00:32:00]
[%emt 00:03:28]} 24.g3 {[%clk 00:24:09] [%emt 00:10:51]} 24...Rfe8 {[%clk
00:31:16] [%emt 00:01:14]} 25.Qe2 {[%clk 00:23:17] [%emt 00:01:21]} 25...Nf8 
{[%clk 00:27:47] [%emt 00:03:59]} 26.Rac1 {[%clk 00:18:15] [%emt 00:05:33]} 
26...Bd8 {[%clk 00:15:13] [%emt 00:13:03]} 27.Ra1 {[%clk 00:11:33] [%emt
00:07:12]} 27...Be7 {[%clk 00:05:52] [%emt 00:09:51]} 28.Na4 {[%clk 00:10:49]
[%emt 00:01:14]} 28...Bb5 {[%clk 00:04:54] [%emt 00:01:28]} 29.Qd2 {[%clk
00:11:12] [%emt 00:00:08]} 29...N8d7 {[%clk 00:04:52] [%emt 00:00:31]} 30.Nc3 
{[%clk 00:09:37] [%emt 00:02:05]} 30...Bc4 {[%clk 00:04:50] [%emt 00:00:32]} 
31.Nc1 {[%clk 00:07:01] [%emt 00:03:07]} 31...Be6 {[%clk 00:02:59] [%emt
00:02:20]} 32.Qe2 {[%clk 00:07:05] [%emt 00:00:26]} 32...b5 {[%clk 00:00:38]
[%emt 00:02:52]} 33.axb6 {[%clk 00:01:14] [%emt 00:06:20]} 33...Nxb6 {[%clk
00:01:07] [%emt 00:00:02]} 34.Nd3 {[%clk 00:01:02] [%emt 00:00:42]} 34...Nc4 
{[%clk 00:01:17] [%emt 00:00:19]} 35.Bc1 {[%clk 00:01:10] [%emt 00:00:22]} 
35...Bd8 {[%clk 00:01:00] [%emt 00:00:47]} 36.Rxa6 {[%clk 00:01:02] [%emt
00:00:39]} 36...Ba5 {[%clk 00:00:49] [%emt 00:00:40]} 37.b4 {[%clk 00:00:36]
[%emt 00:00:56]} 37...Qb7 {[%clk 00:00:32] [%emt 00:00:48]} 38.Rxa5 {[%clk
00:00:46] [%emt 00:00:20]} 38...Nxa5 {[%clk 00:01:00] [%emt 00:00:02]} 39.Nd5 
{[%clk 00:00:42] [%emt 00:00:33]} 39...Bxd5 {[%clk 00:01:00] [%emt 00:00:30]} 
40.exd5 {[%clk 00:00:45] [%emt 00:00:27]} 40...Nc4 {[%clk 00:00:35] [%emt
00:00:55]} 41.Bg2 {[%clk 00:42:00] [%emt 00:09:16]} 41...e4 {[%clk 00:49:44]
[%emt 00:01:20]} 42.Nf4 {[%clk 00:34:19] [%emt 00:08:11]} 42...Qxb4 {[%clk
00:45:39] [%emt 00:04:35]} 43.g4 {[%emt 00:13:01]} 43...Re5 {[%clk 00:34:17]} 
44.Bf1 {[%clk 00:31:55] [%emt 00:02:15]} 44...Qc3 {[%clk 00:33:41] [%emt
00:01:06]} 45.Ng2 {[%clk 00:30:20] [%emt 00:02:05]} 45...Qf3 {[%clk 00:22:50]
[%emt 00:11:21]} 46.g5 {[%clk 00:25:16] [%emt 00:05:34]} 46...hxg5 {[%clk
00:22:37] [%emt 00:00:42]} 47.Bxg5 {[%clk 00:25:01] [%emt 00:00:45]} 47...Rxd5 
{[%clk 00:21:57] [%emt 00:01:11]} 48.Ra1 {[%clk 00:22:40] [%emt 00:02:51]} 
48...Ra5 {[%clk 00:18:08] [%emt 00:04:18]} 49.Rd1 {[%clk 00:20:16] [%emt
00:02:54]} 49...Ne5 {[%clk 00:06:09] [%emt 00:12:29]} 50.Ne3 {[%clk 00:14:46]
[%emt 00:06:01]} 50...Qh5 {[%clk 00:04:52] [%emt 00:01:47]} 51.Qxh5 {[%clk
00:10:39] [%emt 00:04:37]} 51...Nxh5 {[%clk 00:05:19] [%emt 00:00:02]} 52.Be7 
{[%clk 00:10:45] [%emt 00:00:25]} 52...d5 {[%clk 00:03:29] [%emt 00:02:20]} 
53.Bh3 {[%clk 00:07:10] [%emt 00:04:06]} 53...Nf3+ {[%clk 00:01:25] [%emt
00:02:33]} 54.Kf1 {[%clk 00:07:12] [%emt 00:00:29]} 54...Rca8 {[%clk 00:00:48]
[%emt 00:01:06]} 55.Bg4 {[%clk 00:05:27] [%emt 00:02:15]} 55...Nh2+ {[%clk
00:01:11] [%emt 00:00:06]} 56.Kg2 {[%clk 00:05:48] [%emt 00:00:10]} 56...Nxg4 
{[%clk 00:01:36] [%emt 00:00:05]} 57.Nxg4 {[%clk 00:06:15] [%emt 00:00:03]} 
57...Nf4+ {[%clk 00:01:54] [%emt 00:00:12]} 58.Kg3 {[%clk 00:06:29] [%emt
00:00:15]} 58...Ne6 {[%clk 00:01:25] [%emt 00:00:59]} 59.c3 {[%clk 00:06:24]
[%emt 00:00:36]} 59...Rc8 {[%clk 00:00:55] [%emt 00:01:00]} 60.Bb4 {[%clk
00:06:37] [%emt 00:00:17]} 60...Rb5 {[%clk 00:01:19] [%emt 00:00:05]} 0-1

[Event "FIDE Grand Swiss 2023"]
[Site "Villa Marina, Douglas, Isle of Man"]
[Date "2023.10.30"]
[Round "6.17"]
[White "Nihal, Sarin"]
[Black "Narayanan.S.L"]
[Result "1/2-1/2"]
[WhiteElo "2694"]
[BlackElo "2651"]
[EventDate "2023.10.25"]
[ECO "D41"]
[PlyCount "60"]
[BlackFideId "5058422"]
[TimeControl "40/100 + 20/50 + 15 + 30s/move"]
[WhiteFideId "25092340"]

1.d4 {[%clk 01:40:02] [%emt 00:00:57]} 1...Nf6 {[%clk 01:40:54] [%emt 00:00:07]} 
2.c4 {[%clk 01:40:28] [%emt 00:00:04]} 2...e6 {[%clk 01:41:18] [%emt 00:00:06]} 
3.Nf3 {[%clk 01:40:54] [%emt 00:00:03]} 3...d5 {[%clk 01:41:42] [%emt 00:00:07]} 
4.Nc3 {[%clk 01:41:20] [%emt 00:00:03]} 4...c5 {[%clk 01:41:56] [%emt 00:00:16]} 
5.cxd5 {[%clk 01:40:29] [%emt 00:01:22]} 5...cxd4 {[%clk 01:42:21] [%emt
00:00:05]} 6.Qxd4 {[%clk 01:39:38] [%emt 00:01:21]} 6...exd5 {[%clk 01:42:46]
[%emt 00:00:05]} 7.e4 {[%clk 01:35:15] [%emt 00:04:53]} 7...dxe4 {[%clk
01:43:10] [%emt 00:00:06]} 8.Qxd8+ {[%clk 01:35:40] [%emt 00:00:06]} 8...Kxd8 
{[%clk 01:43:37] [%emt 00:00:03]} 9.Ng5 {[%clk 01:36:03] [%emt 00:00:06]} 
9...Be6 {[%clk 01:44:03] [%emt 00:00:04]} 10.Bb5 {[%clk 01:33:08] [%emt
00:03:25]} 10...a6 {[%clk 01:44:27] [%emt 00:00:07]} 11.Ba4 {[%clk 01:33:34]
[%emt 00:00:03]} 11...Bb4 {[%clk 01:44:47] [%emt 00:00:11]} 12.O-O {[%clk
01:33:18] [%emt 00:00:46]} 12...Ke7 {[%clk 01:41:07] [%emt 00:04:09]} 13.Rd1 
{[%clk 00:58:09] [%emt 00:35:39]} 13...Rc8 {[%clk 01:39:41] [%emt 00:01:56]} 
14.Ncxe4 {[%clk 00:53:02] [%emt 00:05:37]} 14...Nxe4 {[%clk 01:40:04] [%emt
00:00:07]} 15.Nxe4 {[%clk 00:53:28] [%emt 00:00:04]} 15...b5 {[%clk 01:40:22]
[%emt 00:00:11]} 16.Bb3 {[%clk 00:53:54] [%emt 00:00:05]} 16...Bxb3 {[%clk
01:40:42] [%emt 00:00:10]} 17.axb3 {[%clk 00:54:20] [%emt 00:00:05]} 17...Nc6 
{[%clk 01:37:45] [%emt 00:03:27]} 18.Be3 {[%clk 00:47:54] [%emt 00:06:56]} 
18...Rd8 {[%clk 01:23:25] [%emt 00:14:49]} 19.Rxd8 {[%clk 00:39:19] [%emt
00:09:05]} 19...Nxd8 {[%clk 01:22:02] [%emt 00:01:52]} 20.Kf1 {[%clk 00:36:52]
[%emt 00:02:58]} 20...Ne6 {[%clk 01:16:55] [%emt 00:05:37]} 21.g4 {[%clk
00:37:10] [%emt 00:00:12]} 21...a5 {[%clk 01:16:52] [%emt 00:00:34]} 22.Rc1 
{[%clk 00:37:12] [%emt 00:00:27]} 22...Rd8 {[%clk 01:07:48] [%emt 00:09:34]} 
23.Ke2 {[%clk 00:36:50] [%emt 00:00:52]} 23...Nd4+ {[%clk 01:07:41] [%emt
00:00:37]} 24.Bxd4 {[%clk 00:37:03] [%emt 00:00:17]} 24...Rxd4 {[%clk 01:08:07]
[%emt 00:00:05]} 25.Ke3 {[%clk 00:36:49] [%emt 00:00:43]} 25...Rd7 {[%clk
01:07:34] [%emt 00:01:03]} 26.f4 {[%clk 00:36:12] [%emt 00:01:07]} 26...f6 
{[%clk 01:05:54] [%emt 00:02:09]} 27.f5 {[%clk 00:31:48] [%emt 00:04:54]} 
27...Bd6 {[%clk 00:54:48] [%emt 00:11:36]} 28.Nxd6 {[%clk 00:08:49] [%emt
00:23:30]} 28...Kxd6 {[%clk 00:55:04] [%emt 00:00:14]} 29.Kd4 {[%clk 00:09:17]
[%emt 00:00:02]} 29...Re7 {[%clk 00:54:41] [%emt 00:00:54]} 30.Ra1 {[%clk
00:09:39] [%emt 00:00:08]} 30...Re2 {[%clk 00:47:16] [%emt 00:07:54]} 1/2-1/2

[Event "FIDE Grand Swiss 2023"]
[Site "Villa Marina, Douglas, Isle of Man"]
[Date "2023.10.30"]
[Round "6.18"]
[White "Fedoseev, Vladimir"]
[Black "Saric, Ivan"]
[Result "1-0"]
[WhiteElo "2691"]
[BlackElo "2647"]
[EventDate "2023.10.25"]
[ECO "E35"]
[PlyCount "163"]
[BlackFideId "14508150"]
[TimeControl "40/100 + 20/50 + 15 + 30s/move"]
[WhiteFideId "24130737"]

1.d4 {[%clk 01:40:43] [%emt 00:00:17]} 1...Nf6 {[%clk 01:40:55] [%emt 00:00:05]} 
2.c4 {[%clk 01:41:01] [%emt 00:00:11]} 2...e6 {[%clk 01:41:21] [%emt 00:00:04]} 
3.Nc3 {[%clk 01:40:56] [%emt 00:00:36]} 3...Bb4 {[%clk 01:41:27] [%emt
00:00:24]} 4.Qc2 {[%clk 01:41:17] [%emt 00:00:09]} 4...d5 {[%clk 01:41:38] [%emt
00:00:19]} 5.cxd5 {[%clk 01:38:40] [%emt 00:03:06]} 5...exd5 {[%clk 01:42:04]
[%emt 00:00:05]} 6.Bg5 {[%clk 01:39:02] [%emt 00:00:08]} 6...h6 {[%clk 01:42:17]
[%emt 00:00:18]} 7.Bh4 {[%clk 01:39:26] [%emt 00:00:05]} 7...O-O {[%clk
01:38:52] [%emt 00:03:55]} 8.e3 {[%clk 01:36:24] [%emt 00:03:32]} 8...c5 {[%clk
01:39:12] [%emt 00:00:09]} 9.dxc5 {[%clk 01:36:40] [%emt 00:00:14]} 9...Be6 
{[%clk 01:39:24] [%emt 00:00:18]} 10.Nf3 {[%clk 01:35:36] [%emt 00:01:33]} 
10...Nbd7 {[%clk 01:39:30] [%emt 00:00:25]} 11.Be2 {[%clk 01:35:54] [%emt
00:00:12]} 11...Rc8 {[%clk 01:38:19] [%emt 00:01:43]} 12.O-O {[%clk 01:27:32]
[%emt 00:08:50]} 12...Nxc5 {[%clk 01:34:55] [%emt 00:03:55]} 13.Qb1 {[%clk
01:16:28] [%emt 00:11:34]} 13...Bxc3 {[%clk 01:22:39] [%emt 00:12:46]} 14.bxc3 
{[%clk 01:16:56] [%emt 00:00:02]} 14...g5 {[%clk 01:20:40] [%emt 00:02:29]} 
15.Bg3 {[%clk 01:17:16] [%emt 00:00:10]} 15...Nfe4 {[%clk 01:21:06] [%emt
00:00:04]} 16.Qb4 {[%clk 01:13:30] [%emt 00:04:15]} 16...Nxg3 {[%clk 01:20:37]
[%emt 00:01:00]} 17.hxg3 {[%clk 01:13:41] [%emt 00:00:18]} 17...Qf6 {[%clk
01:08:46] [%emt 00:12:21]} 18.Nd4 {[%clk 01:08:26] [%emt 00:05:45]} 18...b6 
{[%clk 01:07:52] [%emt 00:01:25]} 19.a4 {[%clk 01:02:19] [%emt 00:06:37]} 
19...Ne4 {[%clk 01:07:31] [%emt 00:00:50]} 20.a5 {[%clk 00:53:35] [%emt
00:09:15]} 20...bxa5 {[%clk 00:44:47] [%emt 00:23:14]} 21.Qxa5 {[%clk 00:41:18]
[%emt 00:12:47]} 21...Rxc3 {[%clk 00:44:01] [%emt 00:01:15]} 22.Qxa7 {[%emt
00:07:23]} 22...Rfc8 {[%clk 00:43:33]} 23.Ba6 {[%clk 00:32:27] [%emt 00:03:27]} 
23...Rf8 {[%clk 00:41:05] [%emt 00:02:59]} 24.Qb6 {[%clk 00:27:24] [%emt
00:05:33]} 24...Qe5 {[%clk 00:38:56] [%emt 00:02:38]} 25.Nf3 {[%clk 00:18:58]
[%emt 00:08:56]} 25...Rb8 {[%clk 00:36:50] [%emt 00:02:36]} 26.Qd4 {[%clk
00:17:32] [%emt 00:01:56]} 26...Qxd4 {[%clk 00:36:25] [%emt 00:00:55]} 27.Nxd4 
{[%clk 00:17:56] [%emt 00:00:06]} 27...Ra8 {[%clk 00:31:24] [%emt 00:05:31]} 
28.Rfd1 {[%clk 00:15:06] [%emt 00:03:20]} 28...Nc5 {[%clk 00:30:44] [%emt
00:01:10]} 29.Bf1 {[%clk 00:15:04] [%emt 00:00:31]} 29...Rxa1 {[%clk 00:30:59]
[%emt 00:00:16]} 30.Rxa1 {[%clk 00:15:34] [%emt 00:00:01]} 30...Ne4 {[%clk
00:30:56] [%emt 00:00:32]} 31.Be2 {[%clk 00:15:09] [%emt 00:00:55]} 31...Kg7 
{[%clk 00:29:18] [%emt 00:02:08]} 32.Bd1 {[%clk 00:13:05] [%emt 00:02:34]} 
32...Rd3 {[%clk 00:16:32] [%emt 00:13:16]} 33.Nf3 {[%clk 00:06:43] [%emt
00:06:51]} 33...Bg4 {[%clk 00:12:41] [%emt 00:04:21]} 34.Bc2 {[%clk 00:06:53]
[%emt 00:00:21]} 34...Rc3 {[%clk 00:13:08] [%emt 00:00:03]} 35.Nd4 {[%clk
00:07:15] [%emt 00:00:08]} 35...Nc5 {[%clk 00:10:26] [%emt 00:03:11]} 36.Ra2 
{[%clk 00:04:10] [%emt 00:03:36]} 36...Ne6 {[%clk 00:10:30] [%emt 00:00:26]} 
37.Nb5 {[%clk 00:04:30] [%emt 00:00:09]} 37...Rc6 {[%clk 00:09:06] [%emt
00:01:54]} 38.f3 {[%clk 00:04:22] [%emt 00:00:38]} 38...Bh5 {[%clk 00:09:30]
[%emt 00:00:06]} 39.Bb3 {[%clk 00:02:47] [%emt 00:02:05]} 39...Rc1+ {[%clk
00:09:26] [%emt 00:00:34]} 40.Kf2 {[%clk 00:01:08] [%emt 00:02:09]} 40...Rb1 
{[%clk 00:09:43] [%emt 00:00:14]} 41.Ba4 {[%clk 00:01:25] [%emt 00:00:12]} 
41...Rb4 {[%clk 00:41:55] [%emt 00:18:17]} 42.Nd6 {[%clk 00:43:56] [%emt
00:08:00]} 42...Bg6 {[%clk 00:42:21] [%emt 00:00:04]} 43.Ne8+ {[%clk 00:38:45]
[%emt 00:05:41]} 43...Kf8 {[%clk 00:40:49] [%emt 00:02:01]} 44.Nf6 {[%clk
00:38:31] [%emt 00:00:44]} 44...d4 {[%clk 00:38:30] [%emt 00:02:50]} 45.e4 
{[%clk 00:36:11] [%emt 00:02:50]} 45...Nc5 {[%clk 00:38:36] [%emt 00:00:24]} 
46.Bd1 {[%clk 00:32:46] [%emt 00:03:54]} 46...Nd3+ {[%clk 00:30:27] [%emt
00:08:39]} 47.Kf1 {[%clk 00:33:03] [%emt 00:00:13]} 47...Rb1 {[%clk 00:29:15]
[%emt 00:01:43]} 48.Rd2 {[%clk 00:32:06] [%emt 00:01:27]} 48...Nb2 {[%clk
00:29:41] [%emt 00:00:03]} 49.Ke1 {[%clk 00:32:24] [%emt 00:00:13]} 49...d3 
{[%clk 00:29:36] [%emt 00:00:36]} 50.g4 {[%clk 00:30:00] [%emt 00:02:53]} 
50...Kg7 {[%clk 00:28:15] [%emt 00:01:50]} 51.Nd5 {[%clk 00:29:47] [%emt
00:00:43]} 51...h5 {[%clk 00:18:02] [%emt 00:10:44]} 52.Nc3 {[%clk 00:29:16]
[%emt 00:01:01]} 52...Rc1 {[%clk 00:18:28] [%emt 00:00:04]} 53.Rxb2 {[%clk
00:29:28] [%emt 00:00:18]} 53...Rxc3 {[%clk 00:18:55] [%emt 00:00:03]} 54.gxh5 
{[%clk 00:29:27] [%emt 00:00:30]} 54...Bxh5 {[%clk 00:19:20] [%emt 00:00:05]} 
55.Kd2 {[%clk 00:26:05] [%emt 00:03:52]} 55...Ra3 {[%clk 00:19:40] [%emt
00:00:11]} 56.Bb3 {[%clk 00:26:15] [%emt 00:00:19]} 56...g4 {[%clk 00:15:05]
[%emt 00:05:06]} 57.f4 {[%clk 00:25:54] [%emt 00:00:50]} 57...g3 {[%clk
00:15:26] [%emt 00:00:10]} 58.Bc4 {[%clk 00:23:54] [%emt 00:02:30]} 58...Ra1 
{[%clk 00:14:59] [%emt 00:00:56]} 59.Bxd3 {[%clk 00:21:21] [%emt 00:03:03]} 
59...Rd1+ {[%clk 00:13:35] [%emt 00:01:55]} 60.Ke3 {[%clk 00:21:41] [%emt
00:00:10]} 60...Re1+ {[%clk 00:13:53] [%emt 00:00:11]} 61.Kd4 {[%clk 00:22:06]
[%emt 00:00:05]} 61...Rd1 {[%clk 00:14:15] [%emt 00:00:08]} 62.Rb5 {[%clk
00:14:37] [%emt 00:07:59]} 62...Be2 {[%clk 00:14:36] [%emt 00:00:09]} 63.Rg5+ 
{[%clk 00:15:01] [%emt 00:00:06]} 63...Kf6 {[%clk 00:14:09] [%emt 00:00:58]} 
64.Rxg3 {[%clk 00:15:12] [%emt 00:00:18]} 64...Rd2 {[%clk 00:04:40] [%emt
00:10:00]} 65.Kc3 {[%clk 00:15:04] [%emt 00:00:38]} 65...Ra2 {[%clk 00:05:05]
[%emt 00:00:05]} 66.Bc2 {[%clk 00:13:46] [%emt 00:01:48]} 66...Ra1 {[%clk
00:03:28] [%emt 00:02:07]} 67.Kd2 {[%clk 00:11:57] [%emt 00:02:18]} 67...Bc4 
{[%clk 00:03:09] [%emt 00:00:49]} 68.Rc3 {[%clk 00:11:26] [%emt 00:01:01]} 
68...Be6 {[%clk 00:03:35] [%emt 00:00:04]} 69.g3 {[%clk 00:10:28] [%emt
00:01:27]} 69...Rg1 {[%clk 00:03:56] [%emt 00:00:10]} 70.Re3 {[%clk 00:09:04]
[%emt 00:01:55]} 70...Rg2+ {[%clk 00:04:11] [%emt 00:00:15]} 71.Kc3 {[%clk
00:09:27] [%emt 00:00:06]} 71...Bg4 {[%clk 00:04:00] [%emt 00:00:41]} 72.Bb3 
{[%clk 00:09:30] [%emt 00:00:27]} 72...Kg6 {[%clk 00:04:23] [%emt 00:00:07]} 
73.Kd4 {[%clk 00:09:07] [%emt 00:00:53]} 73...Rd2+ {[%clk 00:03:52] [%emt
00:01:01]} 74.Kc5 {[%clk 00:09:17] [%emt 00:00:20]} 74...Kf6 {[%clk 00:02:40]
[%emt 00:01:43]} 75.Bd5 {[%clk 00:09:18] [%emt 00:00:28]} 75...Be6 {[%clk
00:02:54] [%emt 00:00:17]} 76.Kd6 {[%clk 00:08:02] [%emt 00:01:46]} 76...Rd1 
{[%clk 00:03:02] [%emt 00:00:22]} 77.Ra3 {[%clk 00:08:13] [%emt 00:00:20]} 
77...Rd2 {[%clk 00:03:15] [%emt 00:00:16]} 78.Ra8 {[%clk 00:08:12] [%emt
00:00:31]} 78...Kg7 {[%clk 00:02:50] [%emt 00:00:55]} 79.Ke5 {[%clk 00:06:49]
[%emt 00:01:52]} 79...Bg4 {[%clk 00:03:16] [%emt 00:00:05]} 80.Ra7 {[%clk
00:06:55] [%emt 00:00:24]} 80...Bh5 {[%clk 00:03:22] [%emt 00:00:24]} 81.Kf5 
{[%clk 00:06:21] [%emt 00:01:04]} 81...Rg2 {[%clk 00:02:56] [%emt 00:00:56]} 
82.Kg5 {[%clk 00:06:44] [%emt 00:00:06]} 1-0